Workbook

Sheet PLANILHA ORÇAMENTÁRIA
A1: PLANILHA ORÇAMENTÁRIA
A3: Empreendimento: REFORMA PARCIAL DA COBERTURA DA ESCOLA MUNICIPAL BANDEIRANTE
A4: Endereço: Margens da Rodovia SC 492, Linha Novo Encantado, Bandeirante/SC
A5: BDI Utilizado: | B5: =BDI!D20 -> 0.2643018753 | G5: SINAPI DATA BASE 03/2022- DESONERADO
A6: ART nº | B6: 8297681-5
A7: VALOR GLOBAL: | B7: =I27 -> 242854.9326
A8: ITEM | B8: TABELA | C8: REFERENCIA | D8: DESCRIÇÃO DO SERVIÇO | E8: UNIDADE | F8: QUANTIDADE | G8: VALOR UNITÁRIO | H8: VALOR COM BDI | I8: VALOR TOTAL
A9: 1 | B9: SERVIÇOS PRELIMINARES | H9: =SUM(I10:I11) -> 864.69
A10: 1.1 | B10: SINAPI | C10: 4813 | D10: PLACA DE OBRA EM CHAPA GALVANIZADA ADESIVADA, DE *2,0 X 1,0* M | E10: =IF(IF(ISERROR(VLOOKUP(C10&"",'BANCO DE DADOS'!A:D,2,0)),"",VLOOKUP(C10&"",'BANCO DE DADOS'!A:D,3,0))=0,"",IF(ISERROR(VLOOKUP(C10&"",'BANCO DE DADOS'!A:D,2,0)),"",VLOOKUP(C10&"",'BANCO DE DADOS'!A:D,3,0))) -> M2 | F10: 2 | G10: =IF(IF(ISERROR(VLOOKUP(C10&"",'BANCO DE DADOS'!A:D,2,0)),"",VLOOKUP(C10&"",'BANCO DE DADOS'!A:D,4,0))=0,"",IF(ISERROR(VLOOKUP(C10&"",'BANCO DE DADOS'!A:D,2,0)),"",VLOOKUP(C10&"",'BANCO DE DADOS'!A:D,4,0))) -> 225,00 | H10: =IF(ISERROR(G10*G10),"",TRUNC((G10*(1+B$5)),2)) -> 284.46 | I10: =IF(ISERROR(H10*F10),"",H10*F10) -> 568.92
A11: 1.1 | B11: CREA/CAU | C11: TABELA | D11: ART OU RRT DE EXECUÇÃO DA OBRA | E11: UN | F11: 1 | G11: 233.94 | H11: =IF(ISERROR(G11*G11),"",TRUNC((G11*(1+B$5)),2)) -> 295.77 | I11: =IF(ISERROR(H11*F11),"",H11*F11) -> 295.77
A13: 2 | B13: RETIRADAS E DEMOLIÇÕES | H13: =SUM(I14:I15) -> 7193.4918
A14: 2.1 | B14: SINAPI | C14: 97647 | D14: =IF(IF(ISERROR(VLOOKUP(C14&"",'BANCO DE DADOS'!A:D,2,0)),"",VLOOKUP(C14&"",'BANCO DE DADOS'!A:D,2,0))=0,"",IF(ISERROR(VLOOKUP(C14&"",'BANCO DE DADOS'!A:D,2,0)),"",VLOOKUP(C14&"",'BANCO DE DADOS'!A:D,2,0))) -> REMOÇÃO DE TELHAS, DE FIBROCIMENTO, METÁLICA E CERÂMICA, DE FORMA MANUAL, SEM REAPROVEITAMENTO. AF_12/2017 | E14: =IF(IF(ISERROR(VLOOKUP(C14&"",'BANCO DE DADOS'!A:D,2,0)),"",VLOOKUP(C14&"",'BANCO DE DADOS'!A:D,3,0))=0,"",IF(ISERROR(VLOOKUP(C14&"",'BANCO DE DADOS'!A:D,2,0)),"",VLOOKUP(C14&"",'BANCO DE DADOS'!A:D,3,0))) -> M2 | F14: 1348.38 | G14: =IF(IF(ISERROR(VLOOKUP(C14&"",'BANCO DE DADOS'!A:D,2,0)),"",VLOOKUP(C14&"",'BANCO DE DADOS'!A:D,4,0))=0,"",IF(ISERROR(VLOOKUP(C14&"",'BANCO DE DADOS'!A:D,2,0)),"",VLOOKUP(C14&"",'BANCO DE DADOS'!A:D,4,0))) -> 2,94 | H14: =IF(ISERROR(G14*G14),"",TRUNC((G14*(1+B$5)),2)) -> 3.71 | I14: =IF(ISERROR(H14*F14),"",H14*F14) -> 5002.4898
A15: 2.4 | B15: SINAPI | C15: 97640 | D15: =IF(IF(ISERROR(VLOOKUP(C15&"",'BANCO DE DADOS'!A:D,2,0)),"",VLOOKUP(C15&"",'BANCO DE DADOS'!A:D,2,0))=0,"",IF(ISERROR(VLOOKUP(C15&"",'BANCO DE DADOS'!A:D,2,0)),"",VLOOKUP(C15&"",'BANCO DE DADOS'!A:D,2,0))) -> REMOÇÃO DE FORROS DE DRYWALL, PVC E FIBROMINERAL, DE FORMA MANUAL, SEM REAPROVEITAMENTO. AF_12/2017 | E15: =IF(IF(ISERROR(VLOOKUP(C15&"",'BANCO DE DADOS'!A:D,2,0)),"",VLOOKUP(C15&"",'BANCO DE DADOS'!A:D,3,0))=0,"",IF(ISERROR(VLOOKUP(C15&"",'BANCO DE DADOS'!A:D,2,0)),"",VLOOKUP(C15&"",'BANCO DE DADOS'!A:D,3,0))) -> M2 | F15: 1230.9 | G15: =IF(IF(ISERROR(VLOOKUP(C15&"",'BANCO DE DADOS'!A:D,2,0)),"",VLOOKUP(C15&"",'BANCO DE DADOS'!A:D,4,0))=0,"",IF(ISERROR(VLOOKUP(C15&"",'BANCO DE DADOS'!A:D,2,0)),"",VLOOKUP(C15&"",'BANCO DE DADOS'!A:D,4,0))) -> 1,41 | H15: =IF(ISERROR(G15*G15),"",TRUNC((G15*(1+B$5)),2)) -> 1.78 | I15: =IF(ISERROR(H15*F15),"",H15*F15) -> 2191.002
A17: 3 | B17: COBERTURA | H17: =SUM(I18:I21) -> 158500.1313
A18: 3.1 | B18: IPPUJ | C18: C15.05.05.10.010 | D18: REPARO EM TESOURAS E TERÇAS DE MADEIRA, CONSIDERANDO REPARO EM 40% DA ÁREA EFETIVA | E18: M2 | F18: 1287.64 | G18: 41.36 | H18: =IF(ISERROR(G18*G18),"",TRUNC((G18*(1+B$5)),2)) -> 52.29 | I18: =IF(ISERROR(H18*F18),"",H18*F18) -> 67330.6956
A19: 3.2 | B19: SINAPI | C19: 94207 | D19: =IF(IF(ISERROR(VLOOKUP(C19&"",'BANCO DE DADOS'!A:D,2,0)),"",VLOOKUP(C19&"",'BANCO DE DADOS'!A:D,2,0))=0,"",IF(ISERROR(VLOOKUP(C19&"",'BANCO DE DADOS'!A:D,2,0)),"",VLOOKUP(C19&"",'BANCO DE DADOS'!A:D,2,0))) -> TELHAMENTO COM TELHA ONDULADA DE FIBROCIMENTO E = 6 MM, COM RECOBRIMENTO LATERAL DE 1/4 DE ONDA PARA TELHADO COM INCLINAÇÃO MAIOR QUE 10°, COM ATÉ 2 ÁGUAS, INCLUSO IÇAMENTO. AF_07/2019 | E19: =IF(IF(ISERROR(VLOOKUP(C19&"",'BANCO DE DADOS'!A:D,2,0)),"",VLOOKUP(C19&"",'BANCO DE DADOS'!A:D,3,0))=0,"",IF(ISERROR(VLOOKUP(C19&"",'BANCO DE DADOS'!A:D,2,0)),"",VLOOKUP(C19&"",'BANCO DE DADOS'!A:D,3,0))) -> M2 | F19: 1287.64 | G19: =IF(IF(ISERROR(VLOOKUP(C19&"",'BANCO DE DADOS'!A:D,2,0)),"",VLOOKUP(C19&"",'BANCO DE DADOS'!A:D,4,0))=0,"",IF(ISERROR(VLOOKUP(C19&"",'BANCO DE DADOS'!A:D,2,0)),"",VLOOKUP(C19&"",'BANCO DE DADOS'!A:D,4,0))) -> 46,07 | H19: =IF(ISERROR(G19*G19),"",TRUNC((G19*(1+B$5)),2)) -> 58.24 | I19: =IF(ISERROR(H19*F19),"",H19*F19) -> 74992.1536
A20: 3.3 | B20: SINAPI | C20: 94223 | D20: =IF(IF(ISERROR(VLOOKUP(C20&"",'BANCO DE DADOS'!A:D,2,0)),"",VLOOKUP(C20&"",'BANCO DE DADOS'!A:D,2,0))=0,"",IF(ISERROR(VLOOKUP(C20&"",'BANCO DE DADOS'!A:D,2,0)),"",VLOOKUP(C20&"",'BANCO DE DADOS'!A:D,2,0))) -> CUMEEIRA PARA TELHA DE FIBROCIMENTO ONDULADA E = 6 MM, INCLUSO ACESSÓRIOS DE FIXAÇÃO E IÇAMENTO. AF_07/2019 | E20: =IF(IF(ISERROR(VLOOKUP(C20&"",'BANCO DE DADOS'!A:D,2,0)),"",VLOOKUP(C20&"",'BANCO DE DADOS'!A:D,3,0))=0,"",IF(ISERROR(VLOOKUP(C20&"",'BANCO DE DADOS'!A:D,2,0)),"",VLOOKUP(C20&"",'BANCO DE DADOS'!A:D,3,0))) -> M | F20: 135.59 | G20: =IF(IF(ISERROR(VLOOKUP(C20&"",'BANCO DE DADOS'!A:D,2,0)),"",VLOOKUP(C20&"",'BANCO DE DADOS'!A:D,4,0))=0,"",IF(ISERROR(VLOOKUP(C20&"",'BANCO DE DADOS'!A:D,2,0)),"",VLOOKUP(C20&"",'BANCO DE DADOS'!A:D,4,0))) -> 80,00 | H20: 101.14 | I20: 13713.5726
A21: 3.4 | B21: SINAPI | C21: 94227 | D21: =IF(IF(ISERROR(VLOOKUP(C21&"",'BANCO DE DADOS'!A:D,2,0)),"",VLOOKUP(C21&"",'BANCO DE DADOS'!A:D,2,0))=0,"",IF(ISERROR(VLOOKUP(C21&"",'BANCO DE DADOS'!A:D,2,0)),"",VLOOKUP(C21&"",'BANCO DE DADOS'!A:D,2,0))) -> CALHA EM CHAPA DE AÇO GALVANIZADO NÚMERO 24, DESENVOLVIMENTO DE 33 CM, INCLUSO TRANSPORTE VERTICAL. AF_07/2019 | E21: =IF(IF(ISERROR(VLOOKUP(C21&"",'BANCO DE DADOS'!A:D,2,0)),"",VLOOKUP(C21&"",'BANCO DE DADOS'!A:D,3,0))=0,"",IF(ISERROR(VLOOKUP(C21&"",'BANCO DE DADOS'!A:D,2,0)),"",VLOOKUP(C21&"",'BANCO DE DADOS'!A:D,3,0))) -> M | F21: 26.97 | G21: =IF(IF(ISERROR(VLOOKUP(C21&"",'BANCO DE DADOS'!A:D,2,0)),"",VLOOKUP(C21&"",'BANCO DE DADOS'!A:D,4,0))=0,"",IF(ISERROR(VLOOKUP(C21&"",'BANCO DE DADOS'!A:D,2,0)),"",VLOOKUP(C21&"",'BANCO DE DADOS'!A:D,4,0))) -> 72,26 | H21: 91.35 | I21: 2463.7095
A22: 4 | B22: FORRO | H22: =SUM(I23:I25) -> 76296.6195
A23: 4.1 | B23: COMPOSIÇÃO | C23: C1 | D23: =COMPOSIÇÕES!B3 -> FORRO EM RÉGUAS DE PVC, FRISADO, PARA AMBIENTES COMERCIAIS, EXCETO ESTRUTURA DE FIXAÇÃO. (APROVEITAMENTO DO ENTARRUGAMENTO EXISTENTE) | E23: M2 | F23: 1158.89 | G23: =COMPOSIÇÕES!G3 -> 38.879918 | H23: =IF(ISERROR(G23*G23),"",TRUNC((G23*(1+B$5)),2)) -> 49.15 | I23: =IF(ISERROR(H23*F23),"",H23*F23) -> 56959.4435
A24: 4.2 | B24: SINAPI | C24: 96121 | D24: =IF(IF(ISERROR(VLOOKUP(C24&"",'BANCO DE DADOS'!A:D,2,0)),"",VLOOKUP(C24&"",'BANCO DE DADOS'!A:D,2,0))=0,"",IF(ISERROR(VLOOKUP(C24&"",'BANCO DE DADOS'!A:D,2,0)),"",VLOOKUP(C24&"",'BANCO DE DADOS'!A:D,2,0))) -> ACABAMENTOS PARA FORRO (RODA-FORRO EM PERFIL METÁLICO E PLÁSTICO). AF_05/2017 | E24: =IF(IF(ISERROR(VLOOKUP(C24&"",'BANCO DE DADOS'!A:D,2,0)),"",VLOOKUP(C24&"",'BANCO DE DADOS'!A:D,3,0))=0,"",IF(ISERROR(VLOOKUP(C24&"",'BANCO DE DADOS'!A:D,2,0)),"",VLOOKUP(C24&"",'BANCO DE DADOS'!A:D,3,0))) -> M | F24: 919.4 | G24: =IF(IF(ISERROR(VLOOKUP(C24&"",'BANCO DE DADOS'!A:D,2,0)),"",VLOOKUP(C24&"",'BANCO DE DADOS'!A:D,4,0))=0,"",IF(ISERROR(VLOOKUP(C24&"",'BANCO DE DADOS'!A:D,2,0)),"",VLOOKUP(C24&"",'BANCO DE DADOS'!A:D,4,0))) -> 12,55 | H24: 15.86 | I24: 14581.684
A25: 4.3 | B25: ORSE | C25: 11092 | D25: TABEIRA EM MADEIRA DE LEI PARA BEIRAL DE TELHADO | E25: M | F25: 200.4 | G25: 18.77 | H25: 23.73 | I25: 4755.492
A27: =IF(ISERROR(VLOOKUP(C27,'BANCO DE DADOS'!A:D,2,0)),"",VLOOKUP(C27,'BANCO DE DADOS'!A:D,2,0)) ->  | H27: VALOR TOTAL | I27: =SUM(I10:I26) -> 242854.9326
H28: Bandeirante/SC, 13 de Maio de 2022
A30: JULIANO DE LIMA
A31: Engenheiro Civil - CREA/SC 147.428-0
D36: =IF(ISERROR(VLOOKUP(C36,'BANCO DE DADOS'!A:D,2,0)),"",VLOOKUP(C36,'BANCO DE DADOS'!A:D,2,0)) ->  | E36: =IF(ISERROR(VLOOKUP(C36,'BANCO DE DADOS'!A:D,2,0)),"",VLOOKUP(C36,'BANCO DE DADOS'!A:D,3,0)) ->  | G36: =IF(ISERROR(VLOOKUP(C36,'BANCO DE DADOS'!A:D,2,0)),"",VLOOKUP(C36,'BANCO DE DADOS'!A:D,4,0)) ->  | I36: =IF(ISERROR(G36*F36),"",G36*F36) -> 
D37: =IF(ISERROR(VLOOKUP(C37,'BANCO DE DADOS'!A:D,2,0)),"",VLOOKUP(C37,'BANCO DE DADOS'!A:D,2,0)) ->  | E37: =IF(ISERROR(VLOOKUP(C37,'BANCO DE DADOS'!A:D,2,0)),"",VLOOKUP(C37,'BANCO DE DADOS'!A:D,3,0)) ->  | G37: =IF(ISERROR(VLOOKUP(C37,'BANCO DE DADOS'!A:D,2,0)),"",VLOOKUP(C37,'BANCO DE DADOS'!A:D,4,0)) -> 
D38: =IF(ISERROR(VLOOKUP(C38,'BANCO DE DADOS'!A:D,2,0)),"",VLOOKUP(C38,'BANCO DE DADOS'!A:D,2,0)) ->  | E38: =IF(ISERROR(VLOOKUP(C38,'BANCO DE DADOS'!A:D,2,0)),"",VLOOKUP(C38,'BANCO DE DADOS'!A:D,3,0)) ->  | G38: =IF(ISERROR(VLOOKUP(C38,'BANCO DE DADOS'!A:D,2,0)),"",VLOOKUP(C38,'BANCO DE DADOS'!A:D,4,0)) -> 
D39: =IF(ISERROR(VLOOKUP(C39,'BANCO DE DADOS'!A:D,2,0)),"",VLOOKUP(C39,'BANCO DE DADOS'!A:D,2,0)) ->  | E39: =IF(ISERROR(VLOOKUP(C39,'BANCO DE DADOS'!A:D,2,0)),"",VLOOKUP(C39,'BANCO DE DADOS'!A:D,3,0)) ->  | G39: =IF(ISERROR(VLOOKUP(C39,'BANCO DE DADOS'!A:D,2,0)),"",VLOOKUP(C39,'BANCO DE DADOS'!A:D,4,0)) -> 
D40: =IF(ISERROR(VLOOKUP(C40,'BANCO DE DADOS'!A:D,2,0)),"",VLOOKUP(C40,'BANCO DE DADOS'!A:D,2,0)) ->  | E40: =IF(ISERROR(VLOOKUP(C40,'BANCO DE DADOS'!A:D,2,0)),"",VLOOKUP(C40,'BANCO DE DADOS'!A:D,3,0)) ->  | G40: =IF(ISERROR(VLOOKUP(C40,'BANCO DE DADOS'!A:D,2,0)),"",VLOOKUP(C40,'BANCO DE DADOS'!A:D,4,0)) -> 

Sheet BANCO DE DADOS
A1: CODIGO DA COMPOSICAO | B1: DESCRICAO DA COMPOSICAO | C1: UNIDADE
A2: 97141 | B2: ASSENTAMENTO DE TUBO DE FERRO FUNDIDO PARA REDE DE ÁGUA, DN 80 MM, JUNTA ELÁSTICA, INSTALADO EM LOCAL COM NÍVEL ALTO DE INTERFERÊNCIAS (NÃO INCLUI FORNECIMENTO). AF_11/2017 | C2: M | D2: 7,60
A3: 97142 | B3: ASSENTAMENTO DE TUBO DE FERRO FUNDIDO PARA REDE DE ÁGUA, DN 100 MM, JUNTA ELÁSTICA, INSTALADO EM LOCAL COM NÍVEL ALTO DE INTERFERÊNCIAS (NÃO INCLUI FORNECIMENTO). AF_11/2017 | C3: M | D3: 8,45
A4: 97143 | B4: ASSENTAMENTO DE TUBO DE FERRO FUNDIDO PARA REDE DE ÁGUA, DN 150 MM, JUNTA ELÁSTICA, INSTALADO EM LOCAL COM NÍVEL ALTO DE INTERFERÊNCIAS (NÃO INCLUI FORNECIMENTO). AF_11/2017 | C4: M | D4: 10,56
A5: 97144 | B5: ASSENTAMENTO DE TUBO DE FERRO FUNDIDO PARA REDE DE ÁGUA, DN 200 MM, JUNTA ELÁSTICA, INSTALADO EM LOCAL COM NÍVEL ALTO DE INTERFERÊNCIAS (NÃO INCLUI FORNECIMENTO). AF_11/2017 | C5: M | D5: 12,66
A6: 97145 | B6: ASSENTAMENTO DE TUBO DE FERRO FUNDIDO PARA REDE DE ÁGUA, DN 250 MM, JUNTA ELÁSTICA, INSTALADO EM LOCAL COM NÍVEL ALTO DE INTERFERÊNCIAS (NÃO INCLUI FORNECIMENTO). AF_11/2017 | C6: M | D6: 14,79
A7: 97146 | B7: ASSENTAMENTO DE TUBO DE FERRO FUNDIDO PARA REDE DE ÁGUA, DN 300 MM, JUNTA ELÁSTICA, INSTALADO EM LOCAL COM NÍVEL ALTO DE INTERFERÊNCIAS (NÃO INCLUI FORNECIMENTO). AF_11/2017 | C7: M | D7: 16,92
A8: 97147 | B8: ASSENTAMENTO DE TUBO DE FERRO FUNDIDO PARA REDE DE ÁGUA, DN 350 MM, JUNTA ELÁSTICA, INSTALADO EM LOCAL COM NÍVEL ALTO DE INTERFERÊNCIAS (NÃO INCLUI FORNECIMENTO). AF_11/2017 | C8: M | D8: 19,07
A9: 97148 | B9: ASSENTAMENTO DE TUBO DE FERRO FUNDIDO PARA REDE DE ÁGUA, DN 400 MM, JUNTA ELÁSTICA, INSTALADO EM LOCAL COM NÍVEL ALTO DE INTERFERÊNCIAS (NÃO INCLUI FORNECIMENTO). AF_11/2017 | C9: M | D9: 21,19
A10: 97149 | B10: ASSENTAMENTO DE TUBO DE FERRO FUNDIDO PARA REDE DE ÁGUA, DN 450 MM, JUNTA ELÁSTICA, INSTALADO EM LOCAL COM NÍVEL ALTO DE INTERFERÊNCIAS (NÃO INCLUI FORNECIMENTO). AF_11/2017 | C10: M | D10: 23,35
A11: 97150 | B11: ASSENTAMENTO DE TUBO DE FERRO FUNDIDO PARA REDE DE ÁGUA, DN 500 MM, JUNTA ELÁSTICA, INSTALADO EM LOCAL COM NÍVEL ALTO DE INTERFERÊNCIAS (NÃO INCLUI FORNECIMENTO). AF_11/2017 | C11: M | D11: 29,41
A12: 97151 | B12: ASSENTAMENTO DE TUBO DE FERRO FUNDIDO PARA REDE DE ÁGUA, DN 600 MM, JUNTA ELÁSTICA, INSTALADO EM LOCAL COM NÍVEL ALTO DE INTERFERÊNCIAS (NÃO INCLUI FORNECIMENTO). AF_11/2017 | C12: M | D12: 34,28
A13: 97152 | B13: ASSENTAMENTO DE TUBO DE FERRO FUNDIDO PARA REDE DE ÁGUA, DN 700 MM, JUNTA ELÁSTICA, INSTALADO EM LOCAL COM NÍVEL ALTO DE INTERFERÊNCIAS (NÃO INCLUI FORNECIMENTO). AF_11/2017 | C13: M | D13: 38,86
A14: 97153 | B14: ASSENTAMENTO DE TUBO DE FERRO FUNDIDO PARA REDE DE ÁGUA, DN 800 MM, JUNTA ELÁSTICA, INSTALADO EM LOCAL COM NÍVEL ALTO DE INTERFERÊNCIAS (NÃO INCLUI FORNECIMENTO). AF_11/2017 | C14: M | D14: 43,63
A15: 97154 | B15: ASSENTAMENTO DE TUBO DE FERRO FUNDIDO PARA REDE DE ÁGUA, DN 900 MM, JUNTA ELÁSTICA, INSTALADO EM LOCAL COM NÍVEL ALTO DE INTERFERÊNCIAS (NÃO INCLUI FORNECIMENTO). AF_11/2017 | C15: M | D15: 48,42
A16: 97155 | B16: ASSENTAMENTO DE TUBO DE FERRO FUNDIDO PARA REDE DE ÁGUA, DN 1000 MM, JUNTA ELÁSTICA, INSTALADO EM LOCAL COM NÍVEL ALTO DE INTERFERÊNCIAS (NÃO INCLUI FORNECIMENTO). AF_11/2017 | C16: M | D16: 53,23
A17: 97156 | B17: ASSENTAMENTO DE TUBO DE FERRO FUNDIDO PARA REDE DE ÁGUA, DN 1200 MM, JUNTA ELÁSTICA, INSTALADO EM LOCAL COM NÍVEL ALTO DE INTERFERÊNCIAS (NÃO INCLUI FORNECIMENTO). AF_11/2017 | C17: M | D17: 63,29
A18: 97157 | B18: ASSENTAMENTO DE TUBO DE FERRO FUNDIDO PARA REDE DE ÁGUA, DN 80 MM, JUNTA ELÁSTICA, INSTALADO EM LOCAL COM NÍVEL BAIXO DE INTERFERÊNCIAS (NÃO INCLUI FORNECIMENTO). AF_11/2017 | C18: M | D18: 4,66
A19: 97158 | B19: ASSENTAMENTO DE TUBO DE FERRO FUNDIDO PARA REDE DE ÁGUA, DN 100 MM, JUNTA ELÁSTICA, INSTALADO EM LOCAL COM NÍVEL BAIXO DE INTERFERÊNCIAS (NÃO INCLUI FORNECIMENTO). AF_11/2017 | C19: M | D19: 5,19
A20: 97159 | B20: ASSENTAMENTO DE TUBO DE FERRO FUNDIDO PARA REDE DE ÁGUA, DN 150 MM, JUNTA ELÁSTICA, INSTALADO EM LOCAL COM NÍVEL BAIXO DE INTERFERÊNCIAS (NÃO INCLUI FORNECIMENTO). AF_11/2017 | C20: M | D20: 6,48
A21: 97160 | B21: ASSENTAMENTO DE TUBO DE FERRO FUNDIDO PARA REDE DE ÁGUA, DN 200 MM, JUNTA ELÁSTICA, INSTALADO EM LOCAL COM NÍVEL BAIXO DE INTERFERÊNCIAS (NÃO INCLUI FORNECIMENTO). AF_11/2017 | C21: M | D21: 7,77
A22: 97161 | B22: ASSENTAMENTO DE TUBO DE FERRO FUNDIDO PARA REDE DE ÁGUA, DN 250 MM, JUNTA ELÁSTICA, INSTALADO EM LOCAL COM NÍVEL BAIXO DE INTERFERÊNCIAS (NÃO INCLUI FORNECIMENTO). AF_11/2017 | C22: M | D22: 9,10
A23: 97162 | B23: ASSENTAMENTO DE TUBO DE FERRO FUNDIDO PARA REDE DE ÁGUA, DN 300 MM, JUNTA ELÁSTICA, INSTALADO EM LOCAL COM NÍVEL BAIXO DE INTERFERÊNCIAS (NÃO INCLUI FORNECIMENTO). AF_11/2017 | C23: M | D23: 10,43
A24: 97163 | B24: ASSENTAMENTO DE TUBO DE FERRO FUNDIDO PARA REDE DE ÁGUA, DN 350 MM, JUNTA ELÁSTICA, INSTALADO EM LOCAL COM NÍVEL BAIXO DE INTERFERÊNCIAS (NÃO INCLUI FORNECIMENTO). AF_11/2017 | C24: M | D24: 11,75
A25: 97164 | B25: ASSENTAMENTO DE TUBO DE FERRO FUNDIDO PARA REDE DE ÁGUA, DN 400 MM, JUNTA ELÁSTICA, INSTALADO EM LOCAL COM NÍVEL BAIXO DE INTERFERÊNCIAS (NÃO INCLUI FORNECIMENTO). AF_11/2017 | C25: M | D25: 13,05
A26: 97165 | B26: ASSENTAMENTO DE TUBO DE FERRO FUNDIDO PARA REDE DE ÁGUA, DN 450 MM, JUNTA ELÁSTICA, INSTALADO EM LOCAL COM NÍVEL BAIXO DE INTERFERÊNCIAS (NÃO INCLUI FORNECIMENTO). AF_11/2017 | C26: M | D26: 14,42
A27: 97166 | B27: ASSENTAMENTO DE TUBO DE FERRO FUNDIDO PARA REDE DE ÁGUA, DN 500 MM, JUNTA ELÁSTICA, INSTALADO EM LOCAL COM NÍVEL BAIXO DE INTERFERÊNCIAS (NÃO INCLUI FORNECIMENTO). AF_11/2017 | C27: M | D27: 18,16
A28: 97167 | B28: ASSENTAMENTO DE TUBO DE FERRO FUNDIDO PARA REDE DE ÁGUA, DN 600 MM, JUNTA ELÁSTICA, INSTALADO EM LOCAL COM NÍVEL BAIXO DE INTERFERÊNCIAS (NÃO INCLUI FORNECIMENTO). AF_11/2017 | C28: M | D28: 21,19
A29: 97168 | B29: ASSENTAMENTO DE TUBO DE FERRO FUNDIDO PARA REDE DE ÁGUA, DN 700 MM, JUNTA ELÁSTICA, INSTALADO EM LOCAL COM NÍVEL BAIXO DE INTERFERÊNCIAS (NÃO INCLUI FORNECIMENTO). AF_11/2017 | C29: M | D29: 23,95
A30: 97169 | B30: ASSENTAMENTO DE TUBO DE FERRO FUNDIDO PARA REDE DE ÁGUA, DN 800 MM, JUNTA ELÁSTICA, INSTALADO EM LOCAL COM NÍVEL BAIXO DE INTERFERÊNCIAS (NÃO INCLUI FORNECIMENTO). AF_11/2017 | C30: M | D30: 26,88
A31: 97170 | B31: ASSENTAMENTO DE TUBO DE FERRO FUNDIDO PARA REDE DE ÁGUA, DN 900 MM, JUNTA ELÁSTICA, INSTALADO EM LOCAL COM NÍVEL BAIXO DE INTERFERÊNCIAS (NÃO INCLUI FORNECIMENTO). AF_11/2017 | C31: M | D31: 29,85
A32: 97171 | B32: ASSENTAMENTO DE TUBO DE FERRO FUNDIDO PARA REDE DE ÁGUA, DN 1000 MM, JUNTA ELÁSTICA, INSTALADO EM LOCAL COM NÍVEL BAIXO DE INTERFERÊNCIAS (NÃO INCLUI FORNECIMENTO). AF_11/2017 | C32: M | D32: 32,83
A33: 97172 | B33: ASSENTAMENTO DE TUBO DE FERRO FUNDIDO PARA REDE DE ÁGUA, DN 1200 MM, JUNTA ELÁSTICA, INSTALADO EM LOCAL COM NÍVEL BAIXO DE INTERFERÊNCIAS (NÃO INCLUI FORNECIMENTO). AF_11/2017 | C33: M | D33: 39,22
A34: 97173 | B34: ASSENTAMENTO DE TUBO DE AÇO CARBONO PARA REDE DE ÁGUA, DN 600 MM (24), JUNTA SOLDADA, INSTALADO EM LOCAL COM NÍVEL ALTO DE INTERFERÊNCIAS (NÃO INCLUI FORNECIMENTO). AF_11/2017 | C34: M | D34: 34,42
A35: 97174 | B35: ASSENTAMENTO DE TUBO DE AÇO CARBONO PARA REDE DE ÁGUA, DN 700 MM (28), JUNTA SOLDADA, INSTALADO EM LOCAL COM NÍVEL ALTO DE INTERFERÊNCIAS (NÃO INCLUI FORNECIMENTO). AF_11/2017 | C35: M | D35: 39,88
A36: 97175 | B36: ASSENTAMENTO DE TUBO DE AÇO CARBONO PARA REDE DE ÁGUA, DN 800 MM (32), JUNTA SOLDADA, INSTALADO EM LOCAL COM NÍVEL ALTO DE INTERFERÊNCIAS (NÃO INCLUI FORNECIMENTO). AF_11/2017 | C36: M | D36: 45,32
A37: 97176 | B37: ASSENTAMENTO DE TUBO DE AÇO CARBONO PARA REDE DE ÁGUA, DN 900 MM (36), JUNTA SOLDADA, INSTALADO EM LOCAL COM NÍVEL ALTO DE INTERFERÊNCIAS (NÃO INCLUI FORNECIMENTO). AF_11/2017 | C37: M | D37: 50,77
A38: 97177 | B38: ASSENTAMENTO DE TUBO DE AÇO CARBONO PARA REDE DE ÁGUA, DN 1000 MM (40) OU DN 1100 MM (44), JUNTA SOLDADA, INSTALADO EM LOCAL COM NÍVEL ALTO DE INTERFERÊNCIAS (NÃO INCLUI FORNECIMENTO). AF_11/2017 | C38: M | D38: 61,65
A39: 97178 | B39: ASSENTAMENTO DE TUBO DE AÇO CARBONO PARA REDE DE ÁGUA, DN 1200 MM (48) OU DN 1300 MM (52), JUNTA SOLDADA, INSTALADO EM LOCAL COM NÍVEL ALTO DE INTERFERÊNCIAS (NÃO INCLUI FORNECIMENTO). AF_11/2017 | C39: M | D39: 72,57
A40: 97179 | B40: ASSENTAMENTO DE TUBO DE AÇO CARBONO PARA REDE DE ÁGUA, DN 1400 MM (56'') OU DN 1500 MM (60), JUNTA SOLDADA, INSTALADO EM LOCAL COM NÍVEL ALTO DE INTERFERÊNCIAS (NÃO INCLUI FORNECIMENTO). AF_11/2017 | C40: M | D40: 83,45
A41: 97180 | B41: ASSENTAMENTO DE TUBO DE AÇO CARBONO PARA REDE DE ÁGUA, DN 1600 MM (64) OU DN 1700 MM (68), JUNTA SOLDADA, INSTALADO EM LOCAL COM NÍVEL ALTO DE INTERFERÊNCIAS (NÃO INCLUI FORNECIMENTO). AF_11/2017 | C41: M | D41: 94,34
A42: 97181 | B42: ASSENTAMENTO DE TUBO DE AÇO CARBONO PARA REDE DE ÁGUA, DN 1800 MM (72) OU DN 1900 MM (76), JUNTA SOLDADA, INSTALADO EM LOCAL COM NÍVEL ALTO DE INTERFERÊNCIAS (NÃO INCLUI FORNECIMENTO). AF_11/2017 | C42: M | D42: 109,67
A43: 97182 | B43: ASSENTAMENTO DE TUBO DE AÇO CARBONO PARA REDE DE ÁGUA, DN 2000 MM (80) OU DN 2100 MM (84), JUNTA SOLDADA, INSTALADO EM LOCAL COM NÍVEL ALTO DE INTERFERÊNCIAS (NÃO INCLUI FORNECIMENTO). AF_11/2017 | C43: M | D43: 121,02
A44: 97183 | B44: ASSENTAMENTO DE TUBO DE AÇO CARBONO PARA REDE DE ÁGUA, DN 600 MM (24), JUNTA SOLDADA, INSTALADO EM LOCAL COM NÍVEL BAIXO DE INTERFERÊNCIAS (NÃO INCLUI FORNECIMENTO). AF_11/2017 | C44: M | D44: 28,17
A45: 97184 | B45: ASSENTAMENTO DE TUBO DE AÇO CARBONO PARA REDE DE ÁGUA, DN 700 MM (28), JUNTA SOLDADA, INSTALADO EM LOCAL COM NÍVEL BAIXO DE INTERFERÊNCIAS (NÃO INCLUI FORNECIMENTO). AF_11/2017 | C45: M | D45: 32,70
A46: 97185 | B46: ASSENTAMENTO DE TUBO DE AÇO CARBONO PARA REDE DE ÁGUA, DN 800 MM (32), JUNTA SOLDADA, INSTALADO EM LOCAL COM NÍVEL BAIXO DE INTERFERÊNCIAS (NÃO INCLUI FORNECIMENTO). AF_11/2017 | C46: M | D46: 37,21
A47: 97186 | B47: ASSENTAMENTO DE TUBO DE AÇO CARBONO PARA REDE DE ÁGUA, DN 900 MM (36), JUNTA SOLDADA, INSTALADO EM LOCAL COM NÍVEL BAIXO DE INTERFERÊNCIAS (NÃO INCLUI FORNECIMENTO). AF_11/2017 | C47: M | D47: 41,74
A48: 97187 | B48: ASSENTAMENTO DE TUBO DE AÇO CARBONO PARA REDE DE ÁGUA, DN 1000 MM (40 ) OU DN 1100 MM (44 ), JUNTA SOLDADA, INSTALADO EM LOCAL COM NÍVEL BAIXO DE INTERFERÊNCIAS (NÃO INCLUI FORNECIMENTO). AF_11/2017 | C48: M | D48: 50,77
A49: 97188 | B49: ASSENTAMENTO DE TUBO DE AÇO CARBONO PARA REDE DE ÁGUA, DN 1200 MM (48) OU DN 1300 MM (52), JUNTA SOLDADA, INSTALADO EM LOCAL COM NÍVEL BAIXO DE INTERFERÊNCIAS (NÃO INCLUI FORNECIMENTO). AF_11/2017 | C49: M | D49: 59,82
A50: 97189 | B50: ASSENTAMENTO DE TUBO DE AÇO CARBONO PARA REDE DE ÁGUA, DN 1400 MM (56'') OU DN 1500 MM (60), JUNTA SOLDADA, INSTALADO EM LOCAL COM NÍVEL BAIXO DE INTERFERÊNCIAS (NÃO INCLUI FORNECIMENTO). AF_11/2017 | C50: M | D50: 68,86
A51: 97190 | B51: ASSENTAMENTO DE TUBO DE AÇO CARBONO PARA REDE DE ÁGUA, DN 1600 MM (64) OU DN 1700 MM (68), JUNTA SOLDADA, INSTALADO EM LOCAL COM NÍVEL BAIXO DE INTERFERÊNCIAS (NÃO INCLUI FORNECIMENTO). AF_11/2017 | C51: M | D51: 77,90
A52: 97191 | B52: ASSENTAMENTO DE TUBO DE AÇO CARBONO PARA REDE DE ÁGUA, DN 1800 MM (72) OU DN 1900 MM (76), JUNTA SOLDADA, INSTALADO EM LOCAL COM NÍVEL BAIXO DE INTERFERÊNCIAS (NÃO INCLUI FORNECIMENTO). AF_11/2017 | C52: M | D52: 90,24
A53: 97192 | B53: ASSENTAMENTO DE TUBO DE AÇO CARBONO PARA REDE DE ÁGUA, DN 2000 MM (80) OU DN 2100 MM (84), JUNTA SOLDADA, INSTALADO EM LOCAL COM NÍVEL BAIXO DE INTERFERÊNCIAS (NÃO INCLUI FORNECIMENTO). AF_11/2017 | C53: M | D53: 99,62
A54: 90694 | B54: TUBO DE PVC PARA REDE COLETORA DE ESGOTO DE PAREDE MACIÇA, DN 100 MM, JUNTA ELÁSTICA - FORNECIMENTO E ASSENTAMENTO. AF_01/2021 | C54: M | D54: 44,60
A55: 90695 | B55: TUBO DE PVC PARA REDE COLETORA DE ESGOTO DE PAREDE MACIÇA, DN 150 MM, JUNTA ELÁSTICA - FORNECIMENTO E ASSENTAMENTO. AF_01/2021 | C55: M | D55: 93,16
A56: 90696 | B56: TUBO DE PVC PARA REDE COLETORA DE ESGOTO DE PAREDE MACIÇA, DN 200 MM, JUNTA ELÁSTICA - FORNECIMENTO E ASSENTAMENTO. AF_01/2021 | C56: M | D56: 138,50
A57: 90697 | B57: TUBO DE PVC PARA REDE COLETORA DE ESGOTO DE PAREDE MACIÇA, DN 250 MM, JUNTA ELÁSTICA - FORNECIMENTO E ASSENTAMENTO. AF_01/2021 | C57: M | D57: 233,70
A58: 90698 | B58: TUBO DE PVC PARA REDE COLETORA DE ESGOTO DE PAREDE MACIÇA, DN 300 MM, JUNTA ELÁSTICA, FORNECIMENTO E ASSENTAMENTO. AF_01/2021 | C58: M | D58: 374,99
A59: 90699 | B59: TUBO DE PVC PARA REDE COLETORA DE ESGOTO DE PAREDE MACIÇA, DN 350 MM, JUNTA ELÁSTICA - FORNECIMENTO E ASSENTAMENTO. AF_01/2021 | C59: M | D59: 463,70
A60: 90700 | B60: TUBO DE PVC PARA REDE COLETORA DE ESGOTO DE PAREDE MACIÇA, DN 400 MM, JUNTA ELÁSTICA FORNECIMENTO E ASSENTAMENTO. AF_01/2021 | C60: M | D60: 601,56
A61: 90701 | B61: TUBO DE PVC CORRUGADO DE DUPLA PAREDE PARA REDE COLETORA DE ESGOTO, DN 150 MM, JUNTA ELÁSTICA - FORNECIMENTO E ASSENTAMENTO. AF_01/2021 | C61: M | D61: 75,39
A62: 90702 | B62: TUBO DE PVC CORRUGADO DE DUPLA PAREDE PARA REDE COLETORA DE ESGOTO, DN 200 MM, JUNTA ELÁSTICA - FORNECIMENTO E ASSENTAMENTO. AF_01/2021 | C62: M | D62: 121,04
A63: 90703 | B63: TUBO DE PVC CORRUGADO DE DUPLA PAREDE PARA REDE COLETORA DE ESGOTO, DN 250 MM, JUNTA ELÁSTICA - FORNECIMENTO E ASSENTAMENTO. AF_01/2021 | C63: M | D63: 200,20
A64: 90704 | B64: TUBO DE PVC CORRUGADO DE DUPLA PAREDE PARA REDE COLETORA DE ESGOTO, DN 300 MM, JUNTA ELÁSTICA - FORNECIMENTO E ASSENTAMENTO. AF_01/2021 | C64: M | D64: 283,61
A65: 90705 | B65: TUBO DE PVC CORRUGADO DE DUPLA PAREDE PARA REDE COLETORA DE ESGOTO, DN 350 MM, JUNTA ELÁSTICA - FORNECIMENTO E ASSENTAMENTO. AF_01/2021 | C65: M | D65: 387,20
A66: 90706 | B66: TUBO DE PVC CORRUGADO DE DUPLA PAREDE PARA REDE COLETORA DE ESGOTO, DN 400 MM, JUNTA ELÁSTICA - FORNECIMENTO E ASSENTAMENTO. AF_01/2021 | C66: M | D66: 453,99
A67: 90708 | B67: TUBO DE PEAD CORRUGADO DE DUPLA PAREDE PARA REDE COLETORA DE ESGOTO, DN 600 MM, JUNTA ELÁSTICA INTEGRADA - FORNECIMENTO E ASSENTAMENTO. AF_01/2021 | C67: M | D67: 829,53
A68: 90724 | B68: JUNTA ARGAMASSADA ENTRE TUBO DN 100 MM E O POÇO DE VISITA/ CAIXA DE CONCRETO OU ALVENARIA EM REDES DE ESGOTO. AF_01/2021 | C68: UN | D68: 20,68
A69: 90725 | B69: JUNTA ARGAMASSADA ENTRE TUBO DN 150 MM E O POÇO DE VISITA/ CAIXA DE CONCRETO OU ALVENARIA EM REDES DE ESGOTO. AF_01/2021 | C69: UN | D69: 25,45
A70: 90726 | B70: JUNTA ARGAMASSADA ENTRE TUBO DN 200 MM E O POÇO/ CAIXA DE CONCRETO OU ALVENARIA EM REDES DE ESGOTO. AF_01/2021 | C70: UN | D70: 30,29
A71: 90727 | B71: JUNTA ARGAMASSADA ENTRE TUBO DN 250 MM E O POÇO DE VISITA/ CAIXA DE CONCRETO OU ALVENARIA EM REDES DE ESGOTO. AF_01/2021 | C71: UN | D71: 35,06
A72: 90728 | B72: JUNTA ARGAMASSADA ENTRE TUBO DN 300 MM E O POÇO DE VISITA/ CAIXA DE CONCRETO OU ALVENARIA EM REDES DE ESGOTO. AF_01/2021 | C72: UN | D72: 39,85
A73: 90729 | B73: JUNTA ARGAMASSADA ENTRE TUBO DN 350 MM E O POÇO DE VISITA/ CAIXA DE CONCRETO OU ALVENARIA EM REDES DE ESGOTO. AF_01/2021 | C73: UN | D73: 44,63
A74: 90730 | B74: JUNTA ARGAMASSADA ENTRE TUBO DN 400 MM E O POÇO DE VISITA/ CAIXA DE CONCRETO OU ALVENARIA EM REDES DE ESGOTO. AF_01/2021 | C74: UN | D74: 49,40
A75: 90731 | B75: JUNTA ARGAMASSADA ENTRE TUBO DN 450 MM E O POÇO DE VISITA/ CAIXA DE CONCRETO OU ALVENARIA EM REDES DE ESGOTO. AF_01/2021 | C75: UN | D75: 54,19
A76: 90732 | B76: JUNTA ARGAMASSADA ENTRE TUBO DN 600 MM E O POÇO DE VISITA/ CAIXA DE CONCRETO OU ALVENARIA EM REDES DE ESGOTO. AF_01/2021 | C76: UN | D76: 68,53
A77: 90733 | B77: ASSENTAMENTO DE TUBO DE PVC PARA REDE COLETORA DE ESGOTO DE PAREDE MACIÇA, DN 100 MM, JUNTA ELÁSTICA (NÃO INCLUI FORNECIMENTO). AF_01/2021 | C77: M | D77: 2,89
A78: 90734 | B78: ASSENTAMENTO DE TUBO DE PVC PARA REDE COLETORA DE ESGOTO DE PAREDE MACIÇA, DN 150 MM, JUNTA ELÁSTICA, (NÃO INCLUI FORNECIMENTO). AF_01/2021 | C78: M | D78: 3,43
A79: 90735 | B79: ASSENTAMENTO DE TUBO DE PVC PARA REDE COLETORA DE ESGOTO DE PAREDE MACIÇA, DN 200 MM, JUNTA ELÁSTICA (NÃO INCLUI FORNECIMENTO). AF_01/2021 | C79: M | D79: 3,96
A80: 90736 | B80: ASSENTAMENTO DE TUBO DE PVC PARA REDE COLETORA DE ESGOTO DE PAREDE MACIÇA, DN 250 MM, JUNTA ELÁSTICA (NÃO INCLUI FORNECIMENTO). AF_01/2021 | C80: M | D80: 4,50
A81: 90737 | B81: ASSENTAMENTO DE TUBO DE PVC PARA REDE COLETORA DE ESGOTO DE PAREDE MACIÇA, DN 300 MM, JUNTA ELÁSTICA (NÃO INCLUI FORNECIMENTO). AF_01/2021 | C81: M | D81: 5,03
A82: 90738 | B82: ASSENTAMENTO DE TUBO DE PVC PARA REDE COLETORA DE ESGOTO DE PAREDE MACIÇA, DN 350 MM, JUNTA ELÁSTICA (NÃO INCLUI FORNECIMENTO). AF_01/2021 | C82: M | D82: 5,56
A83: 90739 | B83: ASSENTAMENTO DE TUBO DE PVC PARA REDE COLETORA DE ESGOTO DE PAREDE MACIÇA, DN 400 MM, JUNTA ELÁSTICA (NÃO INCLUI FORNECIMENTO). AF_01/2021 | C83: M | D83: 8,29
A84: 90740 | B84: ASSENTAMENTO DE TUBO DE PVC CORRUGADO DE DUPLA PAREDE PARA REDE COLETORA DE ESGOTO, DN 150 MM, JUNTA ELÁSTICA (NÃO INCLUI FORNECIMENTO). AF_01/2021 | C84: M | D84: 3,82
A85: 90741 | B85: ASSENTAMENTO DE TUBO DE PVC CORRUGADO DE DUPLA PAREDE PARA REDE COLETORA DE ESGOTO, DN 200 MM, JUNTA ELÁSTICA (NÃO INCLUI FORNECIMENTO). AF_01/2021 | C85: M | D85: 4,35
A86: 90742 | B86: ASSENTAMENTO DE TUBO DE PVC CORRUGADO DE DUPLA PAREDE PARA REDE COLETORA DE ESGOTO, DN 250 MM, JUNTA ELÁSTICA (NÃO INCLUI FORNECIMENTO). AF_01/2021 | C86: M | D86: 4,88
A87: 90743 | B87: ASSENTAMENTO DE TUBO DE PVC CORRUGADO DE DUPLA PAREDE PARA REDE COLETORA DE ESGOTO, DN 300 MM, JUNTA ELÁSTICA (NÃO INCLUI FORNECIMENTO). AF_01/2021 | C87: M | D87: 5,43
A88: 90744 | B88: ASSENTAMENTO DE TUBO DE PVC CORRUGADO DE DUPLA PAREDE PARA REDE COLETORA DE ESGOTO, DN 350 MM, JUNTA ELÁSTICA (NÃO INCLUI FORNECIMENTO). AF_01/2021 | C88: M | D88: 5,96
A89: 90745 | B89: ASSENTAMENTO DE TUBO DE PVC CORRUGADO DE DUPLA PAREDE PARA REDE COLETORA DE ESGOTO, DN 400 MM, JUNTA ELÁSTICA (NÃO INCLUI FORNECIMENTO). AF_01/2021 | C89: M | D89: 9,26
A90: 90746 | B90: ASSENTAMENTO DE TUBO DE PEAD CORRUGADO DE DUPLA PAREDE PARA REDE COLETORA DE ESGOTO, DN 450 MM, JUNTA ELÁSTICA INTEGRADA (NÃO INCLUI FORNECIMENTO). AF_01/2021 | C90: M | D90: 3,13
A91: 90747 | B91: ASSENTAMENTO DE TUBO DE PEAD CORRUGADO DE DUPLA PAREDE PARA REDE COLETORA DE ESGOTO, DN 600 MM, JUNTA ELÁSTICA INTEGRADA (NÃO INCLUI FORNECIMENTO). AF_01/2021 | C91: M | D91: 15,38
A92: 94869 | B92: TUBO DE PEAD CORRUGADO DE DUPLA PAREDE PARA REDE COLETORA DE ESGOTO, DN 250 MM, JUNTA ELÁSTICA INTEGRADA - FORNECIMENTO E ASSENTAMENTO. AF_01/2021 | C92: M | D92: 146,58
A93: 94870 | B93: ASSENTAMENTO DE TUBO DE PEAD CORRUGADO DE DUPLA PAREDE PARA REDE COLETORA DE ESGOTO, DN 250 MM, JUNTA ELÁSTICA INTEGRADA (NÃO INCLUI FORNECIMENTO). AF_01/2021 | C93: M | D93: 1,88
A94: 94871 | B94: TUBO DE PEAD CORRUGADO DE DUPLA PAREDE PARA REDE COLETORA DE ESGOTO, DN 300 MM, JUNTA ELÁSTICA INTEGRADA - FORNECIMENTO E ASSENTAMENTO. AF_01/2021 | C94: M | D94: 229,27
A95: 94872 | B95: ASSENTAMENTO DE TUBO DE PEAD CORRUGADO DE DUPLA PAREDE PARA REDE COLETORA DE ESGOTO, DN 300 MM, JUNTA ELÁSTICA INTEGRADA (NÃO INCLUI FORNECIMENTO). AF_01/2021 | C95: M | D95: 2,57
A96: 94875 | B96: TUBO DE PEAD CORRUGADO DE DUPLA PAREDE PARA REDE COLETORA DE ESGOTO, DN 800 MM, JUNTA ELÁSTICA INTEGRADA - FORNECIMENTO E ASSENTAMENTO. AF_01/2021 | C96: M | D96: 1.347,23
A97: 94876 | B97: ASSENTAMENTO DE TUBO DE PEAD CORRUGADO DE DUPLA PAREDE PARA REDE COLETORA DE ESGOTO, DN 800 MM, JUNTA ELÁSTICA INTEGRADA (NÃO INCLUI FORNECIMENTO). AF_01/2021 | C97: M | D97: 26,35
A98: 94878 | B98: ASSENTAMENTO DE TUBO DE PEAD CORRUGADO DE DUPLA PAREDE PARA REDE COLETORA DE ESGOTO, DN 900 MM, JUNTA ELÁSTICA INTEGRADA (NÃO INCLUI FORNECIMENTO). AF_01/2021 | C98: M | D98: 30,41
A99: 94879 | B99: TUBO DE PEAD CORRUGADO DE DUPLA PAREDE PARA REDE COLETORA DE ESGOTO, DN 1000 MM, JUNTA ELÁSTICA INTEGRADA - FORNECIMENTO E ASSENTAMENTO. AF_01/2021 | C99: M | D99: 2.074,43
A100: 94880 | B100: ASSENTAMENTO DE TUBO DE PEAD CORRUGADO DE DUPLA PAREDE PARA REDE COLETORA DE ESGOTO, DN 1000 MM, JUNTA ELÁSTICA INTEGRADA (NÃO INCLUI FORNECIMENTO). AF_01/2021 | C100: M | D100: 39,63
A101: 94881 | B101: TUBO DE PEAD CORRUGADO DE DUPLA PAREDE PARA REDE COLETORA DE ESGOTO, DN 1200 MM, JUNTA ELÁSTICA INTEGRADA - FORNECIMENTO E ASSENTAMENTO. AF_01/2021 | C101: M | D101: 2.858,08
A102: 94882 | B102: ASSENTAMENTO DE TUBO DE PEAD CORRUGADO DE DUPLA PAREDE PARA REDE COLETORA DE ESGOTO, DN 1200 MM, JUNTA ELÁSTICA INTEGRADA (NÃO INCLUI FORNECIMENTO). AF_01/2021 | C102: M | D102: 45,86
A103: 94884 | B103: ASSENTAMENTO DE TUBO DE PEAD CORRUGADO DE DUPLA PAREDE PARA REDE COLETORA DE ESGOTO, DN 1500 MM, JUNTA ELÁSTICA INTEGRADA (NÃO INCLUI FORNECIMENTO). AF_01/2021 | C103: M | D103: 58,49
A104: 97121 | B104: ASSENTAMENTO DE TUBO DE PVC PBA PARA REDE DE ÁGUA, DN 50 MM, JUNTA ELÁSTICA INTEGRADA, INSTALADO EM LOCAL COM NÍVEL ALTO DE INTERFERÊNCIAS (NÃO INCLUI FORNECIMENTO). AF_11/2017 | C104: M | D104: 1,76
A105: 97122 | B105: ASSENTAMENTO DE TUBO DE PVC PBA PARA REDE DE ÁGUA, DN 75 MM, JUNTA ELÁSTICA INTEGRADA, INSTALADO EM LOCAL COM NÍVEL ALTO DE INTERFERÊNCIAS (NÃO INCLUI FORNECIMENTO). AF_11/2017 | C105: M | D105: 2,46
A106: 97123 | B106: ASSENTAMENTO DE TUBO DE PVC PBA PARA REDE DE ÁGUA, DN 100 MM, JUNTA ELÁSTICA INTEGRADA, INSTALADO EM LOCAL COM NÍVEL ALTO DE INTERFERÊNCIAS (NÃO INCLUI FORNECIMENTO). AF_11/2017 | C106: M | D106: 3,11
A107: 97124 | B107: ASSENTAMENTO DE TUBO DE PVC PBA PARA REDE DE ÁGUA, DN 50 MM, JUNTA ELÁSTICA INTEGRADA, INSTALADO EM LOCAL COM NÍVEL BAIXO DE INTERFERÊNCIAS (NÃO INCLUI FORNECIMENTO). AF_11/2017 | C107: M | D107: 0,78
A108: 97125 | B108: ASSENTAMENTO DE TUBO DE PVC PBA PARA REDE DE ÁGUA, DN 75 MM, JUNTA ELÁSTICA INTEGRADA, INSTALADO EM LOCAL COM NÍVEL BAIXO DE INTERFERÊNCIAS (NÃO INCLUI FORNECIMENTO). AF_11/2017 | C108: M | D108: 1,14
A109: 97126 | B109: ASSENTAMENTO DE TUBO DE PVC PBA PARA REDE DE ÁGUA, DN 100 MM, JUNTA ELÁSTICA INTEGRADA, INSTALADO EM LOCAL COM NÍVEL BAIXO DE INTERFERÊNCIAS (NÃO INCLUI FORNECIMENTO). AF_11/2017 | C109: M | D109: 1,45
A110: 102264 | B110: TUBO DE PVC BRANCO PARA REDE COLETORA DE ESGOTO CONDOMINIAL DE PAREDE MACIÇA, DN 100 MM, JUNTA ELÁSTICA - FORNECIMENTO E ASSENTAMENTO. AF_01/2021 | C110: M | D110: 21,27
A111: 102265 | B111: JUNTA ARGAMASSADA ENTRE TUBO DN 800 MM E O POÇO DE VISITA/ CAIXA DE CONCRETO OU ALVENARIA EM REDES DE ESGOTO. AF_01/2021 | C111: UN | D111: 87,65
A112: 102266 | B112: JUNTA ARGAMASSADA ENTRE TUBO DN 900 MM E O POÇO DE VISITA/ CAIXA DE CONCRETO OU ALVENARIA EM REDES DE ESGOTO. AF_01/2021 | C112: UN | D112: 97,20
A113: 102267 | B113: JUNTA ARGAMASSADA ENTRE TUBO DN 1000 MM E O POÇO DE VISITA/ CAIXA DE CONCRETO OU ALVENARIA EM REDES DE ESGOTO. AF_01/2021 | C113: UN | D113: 111,60
A114: 102268 | B114: JUNTA ARGAMASSADA ENTRE TUBO DN 1200 MM E O POÇO DE VISITA/ CAIXA DE CONCRETO OU ALVENARIA EM REDES DE ESGOTO. AF_01/2021 | C114: UN | D114: 125,94
A115: 102269 | B115: JUNTA ARGAMASSADA ENTRE TUBO DN 1500 MM E O POÇO DE VISITA/ CAIXA DE CONCRETO OU ALVENARIA EM REDES DE ESGOTO. AF_01/2021 | C115: UN | D115: 154,62
A116: 92833 | B116: TUBO DE CONCRETO PARA REDES COLETORAS DE ESGOTO SANITÁRIO, DIÂMETRO DE 300 MM, JUNTA ELÁSTICA, INSTALADO EM LOCAL COM BAIXO NÍVEL DE INTERFERÊNCIAS - FORNECIMENTO E ASSENTAMENTO. AF_12/2015 | C116: M | D116: 184,84
A117: 92834 | B117: ASSENTAMENTO DE TUBO DE CONCRETO PARA REDES COLETORAS DE ESGOTO SANITÁRIO, DIÂMETRO DE 300 MM, JUNTA ELÁSTICA, INSTALADO EM LOCAL COM BAIXO NÍVEL DE INTERFERÊNCIAS (NÃO INCLUI FORNECIMENTO). AF_12/2015 | C117: M | D117: 8,16
A118: 92835 | B118: TUBO DE CONCRETO PARA REDES COLETORAS DE ESGOTO SANITÁRIO, DIÂMETRO DE 400 MM, JUNTA ELÁSTICA, INSTALADO EM LOCAL COM BAIXO NÍVEL DE INTERFERÊNCIAS - FORNECIMENTO E ASSENTAMENTO. AF_12/2015 | C118: M | D118: 193,69
A119: 92836 | B119: ASSENTAMENTO DE TUBO DE CONCRETO PARA REDES COLETORAS DE ESGOTO SANITÁRIO, DIÂMETRO DE 400 MM, JUNTA ELÁSTICA, INSTALADO EM LOCAL COM BAIXO NÍVEL DE INTERFERÊNCIAS (NÃO INCLUI FORNECIMENTO). AF_12/2015 | C119: M | D119: 10,44
A120: 92837 | B120: TUBO DE CONCRETO PARA REDES COLETORAS DE ESGOTO SANITÁRIO, DIÂMETRO DE 500 MM, JUNTA ELÁSTICA, INSTALADO EM LOCAL COM BAIXO NÍVEL DE INTERFERÊNCIAS - FORNECIMENTO E ASSENTAMENTO. AF_12/2015 | C120: M | D120: 342,01
A121: 92838 | B121: ASSENTAMENTO DE TUBO DE CONCRETO PARA REDES COLETORAS DE ESGOTO SANITÁRIO, DIÂMETRO DE 500 MM, JUNTA ELÁSTICA, INSTALADO EM LOCAL COM BAIXO NÍVEL DE INTERFERÊNCIAS (NÃO INCLUI FORNECIMENTO). AF_12/2015 | C121: M | D121: 12,50
A122: 92839 | B122: TUBO DE CONCRETO PARA REDES COLETORAS DE ESGOTO SANITÁRIO, DIÂMETRO DE 600 MM, JUNTA ELÁSTICA, INSTALADO EM LOCAL COM BAIXO NÍVEL DE INTERFERÊNCIAS - FORNECIMENTO E ASSENTAMENTO. AF_12/2015 | C122: M | D122: 418,44
A123: 92840 | B123: ASSENTAMENTO DE TUBO DE CONCRETO PARA REDES COLETORAS DE ESGOTO SANITÁRIO, DIÂMETRO DE 600 MM, JUNTA ELÁSTICA, INSTALADO EM LOCAL COM BAIXO NÍVEL DE INTERFERÊNCIAS (NÃO INCLUI FORNECIMENTO). AF_12/2015 | C123: M | D123: 14,83
A124: 92841 | B124: TUBO DE CONCRETO PARA REDES COLETORAS DE ESGOTO SANITÁRIO, DIÂMETRO DE 700 MM, JUNTA ELÁSTICA, INSTALADO EM LOCAL COM BAIXO NÍVEL DE INTERFERÊNCIAS - FORNECIMENTO E ASSENTAMENTO. AF_12/2015 | C124: M | D124: 545,28
A125: 92842 | B125: ASSENTAMENTO DE TUBO DE CONCRETO PARA REDES COLETORAS DE ESGOTO SANITÁRIO, DIÂMETRO DE 700 MM, JUNTA ELÁSTICA, INSTALADO EM LOCAL COM BAIXO NÍVEL DE INTERFERÊNCIAS (NÃO INCLUI FORNECIMENTO). AF_12/2015 | C125: M | D125: 16,92
A126: 92843 | B126: TUBO DE CONCRETO PARA REDES COLETORAS DE ESGOTO SANITÁRIO, DIÂMETRO DE 800 MM, JUNTA ELÁSTICA, INSTALADO EM LOCAL COM BAIXO NÍVEL DE INTERFERÊNCIAS - FORNECIMENTO E ASSENTAMENTO. AF_12/2015 | C126: M | D126: 565,14
A127: 92844 | B127: ASSENTAMENTO DE TUBO DE CONCRETO PARA REDES COLETORAS DE ESGOTO SANITÁRIO, DIÂMETRO DE 800 MM, JUNTA ELÁSTICA, INSTALADO EM LOCAL COM BAIXO NÍVEL DE INTERFERÊNCIAS (NÃO INCLUI FORNECIMENTO). AF_12/2015 | C127: M | D127: 19,24
A128: 92845 | B128: TUBO DE CONCRETO PARA REDES COLETORAS DE ESGOTO SANITÁRIO, DIÂMETRO DE 900 MM, JUNTA ELÁSTICA, INSTALADO EM LOCAL COM BAIXO NÍVEL DE INTERFERÊNCIAS - FORNECIMENTO E ASSENTAMENTO. AF_12/2015 | C128: M | D128: 836,79
A129: 92846 | B129: ASSENTAMENTO DE TUBO DE CONCRETO PARA REDES COLETORAS DE ESGOTO SANITÁRIO, DIÂMETRO DE 900 MM, JUNTA ELÁSTICA, INSTALADO EM LOCAL COM BAIXO NÍVEL DE INTERFERÊNCIAS (NÃO INCLUI FORNECIMENTO). AF_12/2015 | C129: M | D129: 21,32
A130: 92847 | B130: TUBO DE CONCRETO PARA REDES COLETORAS DE ESGOTO SANITÁRIO, DIÂMETRO DE 1000 MM, JUNTA ELÁSTICA, INSTALADO EM LOCAL COM BAIXO NÍVEL DE INTERFERÊNCIAS - FORNECIMENTO E ASSENTAMENTO. AF_12/2015 | C130: M | D130: 860,34
A131: 92848 | B131: ASSENTAMENTO DE TUBO DE CONCRETO PARA REDES COLETORAS DE ESGOTO SANITÁRIO, DIÂMETRO DE 1000 MM, JUNTA ELÁSTICA, INSTALADO EM LOCAL COM BAIXO NÍVEL DE INTERFERÊNCIAS (NÃO INCLUI FORNECIMENTO). AF_12/2015 | C131: M | D131: 23,67
A132: 92849 | B132: TUBO DE CONCRETO PARA REDES COLETORAS DE ESGOTO SANITÁRIO, DIÂMETRO DE 300 MM, JUNTA ELÁSTICA, INSTALADO EM LOCAL COM ALTO NÍVEL DE INTERFERÊNCIAS - FORNECIMENTO E ASSENTAMENTO. AF_12/2015 | C132: M | D132: 192,13
A133: 92850 | B133: ASSENTAMENTO DE TUBO DE CONCRETO PARA REDES COLETORAS DE ESGOTO SANITÁRIO, DIÂMETRO DE 300 MM, JUNTA ELÁSTICA, INSTALADO EM LOCAL COM ALTO NÍVEL DE INTERFERÊNCIAS (NÃO INCLUI FORNECIMENTO). AF_12/2015 | C133: M | D133: 15,45
A134: 92851 | B134: TUBO DE CONCRETO PARA REDES COLETORAS DE ESGOTO SANITÁRIO, DIÂMETRO DE 400 MM, JUNTA ELÁSTICA, INSTALADO EM LOCAL COM ALTO NÍVEL DE INTERFERÊNCIAS - FORNECIMENTO E ASSENTAMENTO. AF_12/2015 | C134: M | D134: 202,74
A135: 92852 | B135: ASSENTAMENTO DE TUBO DE CONCRETO PARA REDES COLETORAS DE ESGOTO SANITÁRIO, DIÂMETRO DE 400 MM, JUNTA ELÁSTICA, INSTALADO EM LOCAL COM ALTO NÍVEL DE INTERFERÊNCIAS (NÃO INCLUI FORNECIMENTO). AF_12/2015 | C135: M | D135: 19,49
A136: 92853 | B136: TUBO DE CONCRETO PARA REDES COLETORAS DE ESGOTO SANITÁRIO, DIÂMETRO DE 500 MM, JUNTA ELÁSTICA, INSTALADO EM LOCAL COM ALTO NÍVEL DE INTERFERÊNCIAS - FORNECIMENTO E ASSENTAMENTO. AF_12/2015 | C136: M | D136: 353,25
A137: 92854 | B137: ASSENTAMENTO DE TUBO DE CONCRETO PARA REDES COLETORAS DE ESGOTO SANITÁRIO, DIÂMETRO DE 500 MM, JUNTA ELÁSTICA, INSTALADO EM LOCAL COM ALTO NÍVEL DE INTERFERÊNCIAS (NÃO INCLUI FORNECIMENTO). AF_12/2015 | C137: M | D137: 23,74
A138: 92855 | B138: TUBO DE CONCRETO PARA REDES COLETORAS DE ESGOTO SANITÁRIO, DIÂMETRO DE 600 MM, JUNTA ELÁSTICA, INSTALADO EM LOCAL COM ALTO NÍVEL DE INTERFERÊNCIAS - FORNECIMENTO E ASSENTAMENTO. AF_12/2015 | C138: M | D138: 431,59
A139: 92856 | B139: ASSENTAMENTO DE TUBO DE CONCRETO PARA REDES COLETORAS DE ESGOTO SANITÁRIO, DIÂMETRO DE 600 MM, JUNTA ELÁSTICA, INSTALADO EM LOCAL COM ALTO NÍVEL DE INTERFERÊNCIAS (NÃO INCLUI FORNECIMENTO). AF_12/2015 | C139: M | D139: 27,98
A140: 92857 | B140: TUBO DE CONCRETO PARA REDES COLETORAS DE ESGOTO SANITÁRIO, DIÂMETRO DE 700 MM, JUNTA ELÁSTICA, INSTALADO EM LOCAL COM ALTO NÍVEL DE INTERFERÊNCIAS - FORNECIMENTO E ASSENTAMENTO. AF_12/2015 | C140: M | D140: 560,37
A141: 92858 | B141: ASSENTAMENTO DE TUBO DE CONCRETO PARA REDES COLETORAS DE ESGOTO SANITÁRIO, DIÂMETRO DE 700 MM, JUNTA ELÁSTICA, INSTALADO EM LOCAL COM ALTO NÍVEL DE INTERFERÊNCIAS (NÃO INCLUI FORNECIMENTO). AF_12/2015 | C141: M | D141: 32,01
A142: 92859 | B142: TUBO DE CONCRETO PARA REDES COLETORAS DE ESGOTO SANITÁRIO, DIÂMETRO DE 800 MM, JUNTA ELÁSTICA, INSTALADO EM LOCAL COM ALTO NÍVEL DE INTERFERÊNCIAS - FORNECIMENTO E ASSENTAMENTO. AF_12/2015 | C142: M | D142: 582,26
A143: 92860 | B143: ASSENTAMENTO DE TUBO DE CONCRETO PARA REDES COLETORAS DE ESGOTO SANITÁRIO, DIÂMETRO DE 800 MM, JUNTA ELÁSTICA, INSTALADO EM LOCAL COM ALTO NÍVEL DE INTERFERÊNCIAS (NÃO INCLUI FORNECIMENTO). AF_12/2015 | C143: M | D143: 36,36
A144: 92861 | B144: TUBO DE CONCRETO PARA REDES COLETORAS DE ESGOTO SANITÁRIO, DIÂMETRO DE 900 MM, JUNTA ELÁSTICA, INSTALADO EM LOCAL COM ALTO NÍVEL DE INTERFERÊNCIAS - FORNECIMENTO E ASSENTAMENTO. AF_12/2015 | C144: M | D144: 856,05
A145: 92862 | B145: ASSENTAMENTO DE TUBO DE CONCRETO PARA REDES COLETORAS DE ESGOTO SANITÁRIO, DIÂMETRO DE 900 MM, JUNTA ELÁSTICA, INSTALADO EM LOCAL COM ALTO NÍVEL DE INTERFERÊNCIAS (NÃO INCLUI FORNECIMENTO). AF_12/2015 | C145: M | D145: 40,58
A146: 92863 | B146: TUBO DE CONCRETO PARA REDES COLETORAS DE ESGOTO SANITÁRIO, DIÂMETRO DE 1000 MM, JUNTA ELÁSTICA, INSTALADO EM LOCAL COM ALTO NÍVEL DE INTERFERÊNCIAS - FORNECIMENTO E ASSENTAMENTO. AF_12/2015 | C146: M | D146: 881,50
A147: 92864 | B147: ASSENTAMENTO DE TUBO DE CONCRETO PARA REDES COLETORAS DE ESGOTO SANITÁRIO, DIÂMETRO DE 1000 MM, JUNTA ELÁSTICA, INSTALADO EM LOCAL COM ALTO NÍVEL DE INTERFERÊNCIAS (NÃO INCLUI FORNECIMENTO). AF_12/2015 | C147: M | D147: 44,83
A148: 92210 | B148: TUBO DE CONCRETO PARA REDES COLETORAS DE ÁGUAS PLUVIAIS, DIÂMETRO DE 400 MM, JUNTA RÍGIDA, INSTALADO EM LOCAL COM BAIXO NÍVEL DE INTERFERÊNCIAS - FORNECIMENTO E ASSENTAMENTO. AF_12/2015 | C148: M | D148: 151,03
A149: 92211 | B149: TUBO DE CONCRETO PARA REDES COLETORAS DE ÁGUAS PLUVIAIS, DIÂMETRO DE 500 MM, JUNTA RÍGIDA, INSTALADO EM LOCAL COM BAIXO NÍVEL DE INTERFERÊNCIAS - FORNECIMENTO E ASSENTAMENTO. AF_12/2015 | C149: M | D149: 181,54
A150: 92212 | B150: TUBO DE CONCRETO PARA REDES COLETORAS DE ÁGUAS PLUVIAIS, DIÂMETRO DE 600 MM, JUNTA RÍGIDA, INSTALADO EM LOCAL COM BAIXO NÍVEL DE INTERFERÊNCIAS - FORNECIMENTO E ASSENTAMENTO. AF_12/2015 | C150: M | D150: 269,38
A151: 92213 | B151: TUBO DE CONCRETO PARA REDES COLETORAS DE ÁGUAS PLUVIAIS, DIÂMETRO DE 700 MM, JUNTA RÍGIDA, INSTALADO EM LOCAL COM BAIXO NÍVEL DE INTERFERÊNCIAS - FORNECIMENTO E ASSENTAMENTO. AF_12/2015 | C151: M | D151: 353,14
A152: 92214 | B152: TUBO DE CONCRETO PARA REDES COLETORAS DE ÁGUAS PLUVIAIS, DIÂMETRO DE 800 MM, JUNTA RÍGIDA, INSTALADO EM LOCAL COM BAIXO NÍVEL DE INTERFERÊNCIAS - FORNECIMENTO E ASSENTAMENTO. AF_12/2015 | C152: M | D152: 426,41
A153: 92215 | B153: TUBO DE CONCRETO PARA REDES COLETORAS DE ÁGUAS PLUVIAIS, DIÂMETRO DE 900 MM, JUNTA RÍGIDA, INSTALADO EM LOCAL COM BAIXO NÍVEL DE INTERFERÊNCIAS - FORNECIMENTO E ASSENTAMENTO. AF_12/2015 | C153: M | D153: 489,67
A154: 92216 | B154: TUBO DE CONCRETO PARA REDES COLETORAS DE ÁGUAS PLUVIAIS, DIÂMETRO DE 1000 MM, JUNTA RÍGIDA, INSTALADO EM LOCAL COM BAIXO NÍVEL DE INTERFERÊNCIAS - FORNECIMENTO E ASSENTAMENTO. AF_12/2015 | C154: M | D154: 512,83
A155: 92219 | B155: TUBO DE CONCRETO PARA REDES COLETORAS DE ÁGUAS PLUVIAIS, DIÂMETRO DE 400 MM, JUNTA RÍGIDA, INSTALADO EM LOCAL COM ALTO NÍVEL DE INTERFERÊNCIAS - FORNECIMENTO E ASSENTAMENTO. AF_12/2015 | C155: M | D155: 160,09
A156: 92220 | B156: TUBO DE CONCRETO PARA REDES COLETORAS DE ÁGUAS PLUVIAIS, DIÂMETRO DE 500 MM, JUNTA RÍGIDA, INSTALADO EM LOCAL COM ALTO NÍVEL DE INTERFERÊNCIAS - FORNECIMENTO E ASSENTAMENTO. AF_12/2015 | C156: M | D156: 192,78
A157: 92221 | B157: TUBO DE CONCRETO PARA REDES COLETORAS DE ÁGUAS PLUVIAIS, DIÂMETRO DE 600 MM, JUNTA RÍGIDA, INSTALADO EM LOCAL COM ALTO NÍVEL DE INTERFERÊNCIAS - FORNECIMENTO E ASSENTAMENTO. AF_12/2015 | C157: M | D157: 282,53
A158: 92222 | B158: TUBO DE CONCRETO PARA REDES COLETORAS DE ÁGUAS PLUVIAIS, DIÂMETRO DE 700 MM, JUNTA RÍGIDA, INSTALADO EM LOCAL COM ALTO NÍVEL DE INTERFERÊNCIAS - FORNECIMENTO E ASSENTAMENTO. AF_12/2015 | C158: M | D158: 368,45
A159: 92223 | B159: TUBO DE CONCRETO PARA REDES COLETORAS DE ÁGUAS PLUVIAIS, DIÂMETRO DE 800 MM, JUNTA RÍGIDA, INSTALADO EM LOCAL COM ALTO NÍVEL DE INTERFERÊNCIAS - FORNECIMENTO E ASSENTAMENTO. AF_12/2015 | C159: M | D159: 443,53
A160: 92224 | B160: TUBO DE CONCRETO PARA REDES COLETORAS DE ÁGUAS PLUVIAIS, DIÂMETRO DE 900 MM, JUNTA RÍGIDA, INSTALADO EM LOCAL COM ALTO NÍVEL DE INTERFERÊNCIAS - FORNECIMENTO E ASSENTAMENTO. AF_12/2015 | C160: M | D160: 508,67
A161: 92226 | B161: TUBO DE CONCRETO PARA REDES COLETORAS DE ÁGUAS PLUVIAIS, DIÂMETRO DE 1000 MM, JUNTA RÍGIDA, INSTALADO EM LOCAL COM ALTO NÍVEL DE INTERFERÊNCIAS - FORNECIMENTO E ASSENTAMENTO. AF_12/2015 | C161: M | D161: 534,09
A162: 92808 | B162: ASSENTAMENTO DE TUBO DE CONCRETO PARA REDES COLETORAS DE ÁGUAS PLUVIAIS, DIÂMETRO DE 300 MM, JUNTA RÍGIDA, INSTALADO EM LOCAL COM BAIXO NÍVEL DE INTERFERÊNCIAS (NÃO INCLUI FORNECIMENTO). AF_12/2015 | C162: M | D162: 36,80
A163: 92809 | B163: ASSENTAMENTO DE TUBO DE CONCRETO PARA REDES COLETORAS DE ÁGUAS PLUVIAIS, DIÂMETRO DE 400 MM, JUNTA RÍGIDA, INSTALADO EM LOCAL COM BAIXO NÍVEL DE INTERFERÊNCIAS (NÃO INCLUI FORNECIMENTO). AF_12/2015 | C163: M | D163: 47,24
A164: 92810 | B164: ASSENTAMENTO DE TUBO DE CONCRETO PARA REDES COLETORAS DE ÁGUAS PLUVIAIS, DIÂMETRO DE 500 MM, JUNTA RÍGIDA, INSTALADO EM LOCAL COM BAIXO NÍVEL DE INTERFERÊNCIAS (NÃO INCLUI FORNECIMENTO). AF_12/2015 | C164: M | D164: 57,49
A165: 92811 | B165: ASSENTAMENTO DE TUBO DE CONCRETO PARA REDES COLETORAS DE ÁGUAS PLUVIAIS, DIÂMETRO DE 600 MM, JUNTA RÍGIDA, INSTALADO EM LOCAL COM BAIXO NÍVEL DE INTERFERÊNCIAS (NÃO INCLUI FORNECIMENTO). AF_12/2015 | C165: M | D165: 68,53
A166: 92812 | B166: ASSENTAMENTO DE TUBO DE CONCRETO PARA REDES COLETORAS DE ÁGUAS PLUVIAIS, DIÂMETRO DE 700 MM, JUNTA RÍGIDA, INSTALADO EM LOCAL COM BAIXO NÍVEL DE INTERFERÊNCIAS (NÃO INCLUI FORNECIMENTO). AF_12/2015 | C166: M | D166: 79,39
A167: 92813 | B167: ASSENTAMENTO DE TUBO DE CONCRETO PARA REDES COLETORAS DE ÁGUAS PLUVIAIS, DIÂMETRO DE 800 MM, JUNTA RÍGIDA, INSTALADO EM LOCAL COM BAIXO NÍVEL DE INTERFERÊNCIAS (NÃO INCLUI FORNECIMENTO). AF_12/2015 | C167: M | D167: 92,23
A168: 92814 | B168: ASSENTAMENTO DE TUBO DE CONCRETO PARA REDES COLETORAS DE ÁGUAS PLUVIAIS, DIÂMETRO DE 900 MM, JUNTA RÍGIDA, INSTALADO EM LOCAL COM BAIXO NÍVEL DE INTERFERÊNCIAS (NÃO INCLUI FORNECIMENTO). AF_12/2015 | C168: M | D168: 105,70
A169: 92815 | B169: ASSENTAMENTO DE TUBO DE CONCRETO PARA REDES COLETORAS DE ÁGUAS PLUVIAIS, DIÂMETRO DE 1000 MM, JUNTA RÍGIDA, INSTALADO EM LOCAL COM BAIXO NÍVEL DE INTERFERÊNCIAS (NÃO INCLUI FORNECIMENTO). AF_12/2015 | C169: M | D169: 121,27
A170: 92816 | B170: TUBO DE CONCRETO PARA REDES COLETORAS DE ÁGUAS PLUVIAIS, DIÂMETRO DE 1200 MM, JUNTA RÍGIDA, INSTALADO EM LOCAL COM BAIXO NÍVEL DE INTERFERÊNCIAS - FORNECIMENTO E ASSENTAMENTO. AF_12/2015 | C170: M | D170: 736,56
A171: 92817 | B171: ASSENTAMENTO DE TUBO DE CONCRETO PARA REDES COLETORAS DE ÁGUAS PLUVIAIS, DIÂMETRO DE 1200 MM, JUNTA RÍGIDA, INSTALADO EM LOCAL COM BAIXO NÍVEL DE INTERFERÊNCIAS (NÃO INCLUI FORNECIMENTO). AF_12/2015 | C171: M | D171: 151,74
A172: 92818 | B172: TUBO DE CONCRETO PARA REDES COLETORAS DE ÁGUAS PLUVIAIS, DIÂMETRO DE 1500 MM, JUNTA RÍGIDA, INSTALADO EM LOCAL COM BAIXO NÍVEL DE INTERFERÊNCIAS - FORNECIMENTO E ASSENTAMENTO. AF_12/2015 | C172: M | D172: 1.051,54
A173: 92819 | B173: ASSENTAMENTO DE TUBO DE CONCRETO PARA REDES COLETORAS DE ÁGUAS PLUVIAIS, DIÂMETRO DE 1500 MM, JUNTA RÍGIDA, INSTALADO EM LOCAL COM BAIXO NÍVEL DE INTERFERÊNCIAS (NÃO INCLUI FORNECIMENTO). AF_12/2015 | C173: M | D173: 204,27
A174: 92820 | B174: ASSENTAMENTO DE TUBO DE CONCRETO PARA REDES COLETORAS DE ÁGUAS PLUVIAIS, DIÂMETRO DE 300 MM, JUNTA RÍGIDA, INSTALADO EM LOCAL COM ALTO NÍVEL DE INTERFERÊNCIAS (NÃO INCLUI FORNECIMENTO). AF_12/2015 | C174: M | D174: 43,89
A175: 92821 | B175: ASSENTAMENTO DE TUBO DE CONCRETO PARA REDES COLETORAS DE ÁGUAS PLUVIAIS, DIÂMETRO DE 400 MM, JUNTA RÍGIDA, INSTALADO EM LOCAL COM ALTO NÍVEL DE INTERFERÊNCIAS (NÃO INCLUI FORNECIMENTO). AF_12/2015 | C175: M | D175: 56,30
A176: 92822 | B176: ASSENTAMENTO DE TUBO DE CONCRETO PARA REDES COLETORAS DE ÁGUAS PLUVIAIS, DIÂMETRO DE 500 MM, JUNTA RÍGIDA, INSTALADO EM LOCAL COM ALTO NÍVEL DE INTERFERÊNCIAS (NÃO INCLUI FORNECIMENTO). AF_12/2015 | C176: M | D176: 68,73
A177: 92824 | B177: ASSENTAMENTO DE TUBO DE CONCRETO PARA REDES COLETORAS DE ÁGUAS PLUVIAIS, DIÂMETRO DE 600 MM, JUNTA RÍGIDA, INSTALADO EM LOCAL COM ALTO NÍVEL DE INTERFERÊNCIAS (NÃO INCLUI FORNECIMENTO). AF_12/2015 | C177: M | D177: 81,68
A178: 92825 | B178: ASSENTAMENTO DE TUBO DE CONCRETO PARA REDES COLETORAS DE ÁGUAS PLUVIAIS, DIÂMETRO DE 700 MM, JUNTA RÍGIDA, INSTALADO EM LOCAL COM ALTO NÍVEL DE INTERFERÊNCIAS (NÃO INCLUI FORNECIMENTO). AF_12/2015 | C178: M | D178: 94,70
A179: 92826 | B179: ASSENTAMENTO DE TUBO DE CONCRETO PARA REDES COLETORAS DE ÁGUAS PLUVIAIS, DIÂMETRO DE 800 MM, JUNTA RÍGIDA, INSTALADO EM LOCAL COM ALTO NÍVEL DE INTERFERÊNCIAS (NÃO INCLUI FORNECIMENTO). AF_12/2015 | C179: M | D179: 109,35
A180: 92827 | B180: ASSENTAMENTO DE TUBO DE CONCRETO PARA REDES COLETORAS DE ÁGUAS PLUVIAIS, DIÂMETRO DE 900 MM, JUNTA RÍGIDA, INSTALADO EM LOCAL COM ALTO NÍVEL DE INTERFERÊNCIAS (NÃO INCLUI FORNECIMENTO). AF_12/2015 | C180: M | D180: 124,70
A181: 92828 | B181: ASSENTAMENTO DE TUBO DE CONCRETO PARA REDES COLETORAS DE ÁGUAS PLUVIAIS, DIÂMETRO DE 1000 MM, JUNTA RÍGIDA, INSTALADO EM LOCAL COM ALTO NÍVEL DE INTERFERÊNCIAS (NÃO INCLUI FORNECIMENTO). AF_12/2015 | C181: M | D181: 142,53
A182: 92829 | B182: TUBO DE CONCRETO PARA REDES COLETORAS DE ÁGUAS PLUVIAIS, DIÂMETRO DE 1200 MM, JUNTA RÍGIDA, INSTALADO EM LOCAL COM ALTO NÍVEL DE INTERFERÊNCIAS - FORNECIMENTO E ASSENTAMENTO. AF_12/2015 | C182: M | D182: 761,63
A183: 92830 | B183: ASSENTAMENTO DE TUBO DE CONCRETO PARA REDES COLETORAS DE ÁGUAS PLUVIAIS, DIÂMETRO DE 1200 MM, JUNTA RÍGIDA, INSTALADO EM LOCAL COM ALTO NÍVEL DE INTERFERÊNCIAS (NÃO INCLUI FORNECIMENTO). AF_12/2015 | C183: M | D183: 176,81
A184: 92831 | B184: TUBO DE CONCRETO PARA REDES COLETORAS DE ÁGUAS PLUVIAIS, DIÂMETRO DE 1500 MM, JUNTA RÍGIDA, INSTALADO EM LOCAL COM ALTO NÍVEL DE INTERFERÊNCIAS - FORNECIMENTO E ASSENTAMENTO. AF_12/2015 | C184: M | D184: 1.082,31
A185: 92832 | B185: ASSENTAMENTO DE TUBO DE CONCRETO PARA REDES COLETORAS DE ÁGUAS PLUVIAIS, DIÂMETRO DE 1500 MM, JUNTA RÍGIDA, INSTALADO EM LOCAL COM ALTO NÍVEL DE INTERFERÊNCIAS (NÃO INCLUI FORNECIMENTO). AF_12/2015 | C185: M | D185: 235,04
A186: 95565 | B186: TUBO DE CONCRETO PARA REDES COLETORAS DE ÁGUAS PLUVIAIS, DIÂMETRO DE 300MM, JUNTA RÍGIDA, INSTALADO EM LOCAL COM BAIXO NÍVEL DE INTERFERÊNCIAS - FORNECIMENTO E ASSENTAMENTO. AF_12/2015 | C186: M | D186: 128,77
A187: 95566 | B187: TUBO DE CONCRETO PARA REDES COLETORAS DE ÁGUAS PLUVIAIS, DIÂMETRO DE 300MM, JUNTA RÍGIDA, INSTALADO EM LOCAL COM ALTO NÍVEL DE INTERFERÊNCIAS - FORNECIMENTO E ASSENTAMENTO. AF_12/2015 | C187: M | D187: 135,86
A188: 95567 | B188: TUBO DE CONCRETO (SIMPLES) PARA REDES COLETORAS DE ÁGUAS PLUVIAIS, DIÂMETRO DE 300 MM, JUNTA RÍGIDA, INSTALADO EM LOCAL COM BAIXO NÍVEL DE INTERFERÊNCIAS - FORNECIMENTO E ASSENTAMENTO. AF_12/2015 | C188: M | D188: 71,82
A189: 95568 | B189: TUBO DE CONCRETO (SIMPLES) PARA REDES COLETORAS DE ÁGUAS PLUVIAIS, DIÂMETRO DE 400 MM, JUNTA RÍGIDA, INSTALADO EM LOCAL COM BAIXO NÍVEL DE INTERFERÊNCIAS - FORNECIMENTO E ASSENTAMENTO. AF_12/2015 | C189: M | D189: 88,61
A190: 95569 | B190: TUBO DE CONCRETO (SIMPLES) PARA REDES COLETORAS DE ÁGUAS PLUVIAIS, DIÂMETRO DE 500 MM, JUNTA RÍGIDA, INSTALADO EM LOCAL COM BAIXO NÍVEL DE INTERFERÊNCIAS - FORNECIMENTO E ASSENTAMENTO. AF_12/2015 | C190: M | D190: 119,07
A191: 95570 | B191: TUBO DE CONCRETO (SIMPLES) PARA REDES COLETORAS DE ÁGUAS PLUVIAIS, DIÂMETRO DE 300 MM, JUNTA RÍGIDA, INSTALADO EM LOCAL COM ALTO NÍVEL DE INTERFERÊNCIAS - FORNECIMENTO E ASSENTAMENTO. AF_12/2015 | C191: M | D191: 78,91
A192: 95571 | B192: TUBO DE CONCRETO (SIMPLES) PARA REDES COLETORAS DE ÁGUAS PLUVIAIS, DIÂMETRO DE 400 MM, JUNTA RÍGIDA, INSTALADO EM LOCAL COM ALTO NÍVEL DE INTERFERÊNCIAS - FORNECIMENTO E ASSENTAMENTO. AF_12/2015 | C192: M | D192: 97,67
A193: 95572 | B193: TUBO DE CONCRETO (SIMPLES) PARA REDES COLETORAS DE ÁGUAS PLUVIAIS, DIÂMETRO DE 500 MM, JUNTA RÍGIDA, INSTALADO EM LOCAL COM ALTO NÍVEL DE INTERFERÊNCIAS - FORNECIMENTO E ASSENTAMENTO. AF_12/2015 | C193: M | D193: 130,31
A194: 97127 | B194: ASSENTAMENTO DE TUBO DE PVC DEFOFO OU PRFV OU RPVC PARA REDE DE ÁGUA, DN 150 MM, JUNTA ELÁSTICA INTEGRADA, INSTALADO EM LOCAL COM NÍVEL ALTO DE INTERFERÊNCIAS (NÃO INCLUI FORNECIMENTO). AF_11/2017 | C194: M | D194: 4,47
A195: 97128 | B195: ASSENTAMENTO DE TUBO DE PVC DEFOFO OU PRFV OU RPVC PARA REDE DE ÁGUA, DN 200 MM, JUNTA ELÁSTICA INTEGRADA, INSTALADO EM LOCAL COM NÍVEL ALTO DE INTERFERÊNCIAS (NÃO INCLUI FORNECIMENTO). AF_11/2017 | C195: M | D195: 9,26
A196: 97129 | B196: ASSENTAMENTO DE TUBO DE PVC DEFOFO OU PRFV OU RPVC PARA REDE DE ÁGUA, DN 250 MM, JUNTA ELÁSTICA INTEGRADA, INSTALADO EM LOCAL COM NÍVEL ALTO DE INTERFERÊNCIAS (NÃO INCLUI FORNECIMENTO). AF_11/2017 | C196: M | D196: 11,41
A197: 97130 | B197: ASSENTAMENTO DE TUBO DE PVC DEFOFO OU PRFV OU RPVC PARA REDE DE ÁGUA, DN 300 MM, JUNTA ELÁSTICA INTEGRADA, INSTALADO EM LOCAL COM NÍVEL ALTO DE INTERFERÊNCIAS (NÃO INCLUI FORNECIMENTO). AF_11/2017 | C197: M | D197: 13,54
A198: 97131 | B198: ASSENTAMENTO DE TUBO DE PVC DEFOFO OU PRFV OU RPVC PARA REDE DE ÁGUA, DN 350 MM, JUNTA ELÁSTICA INTEGRADA, INSTALADO EM LOCAL COM NÍVEL ALTO DE INTERFERÊNCIAS (NÃO INCLUI FORNECIMENTO). AF_11/2017 | C198: M | D198: 15,65
A199: 97132 | B199: ASSENTAMENTO DE TUBO DE PVC DEFOFO OU PRFV OU RPVC PARA REDE DE ÁGUA, DN 400 MM, JUNTA ELÁSTICA INTEGRADA, INSTALADO EM LOCAL COM NÍVEL ALTO DE INTERFERÊNCIAS (NÃO INCLUI FORNECIMENTO). AF_11/2017 | C199: M | D199: 17,77
A200: 97133 | B200: ASSENTAMENTO DE TUBO DE PVC DEFOFO OU PRFV OU RPVC PARA REDE DE ÁGUA, DN 500 MM, JUNTA ELÁSTICA INTEGRADA, INSTALADO EM LOCAL COM NÍVEL ALTO DE INTERFERÊNCIAS (NÃO INCLUI FORNECIMENTO). AF_11/2017 | C200: M | D200: 22,04
... 12216 more rows

Sheet BDI
A3: DEMONSTRATIVO DE CÁLCULO DO BDI
A5: Tipo de obra: Construção e Reforma de Edificios
A6: ITEM | B6: DISCRIMINAÇÃO | C6: TAXAS DO BDI A CONSIDERAR
C7: MINIMO | D7: MAXIMO | E7: ADOTADO
A8: 1.0 | B8: *ADIMINISTRAÇÃO CENTRAL | C8: 0.03 | D8: 0.055 | E8: 0.03
A9: 2.0 | B9: *SEGURO + GARANTIA | C9: 0.008 | D9: 0.01 | E9: 0.008
A10: 3.0 | B10: *RISCO | C10: 0.0097 | D10: 0.0127 | E10: 0.0097
A11: 4.0 | B11: *DESPESAS FINANCEIRAS | C11: 0.0059 | D11: 0.0139 | E11: 0.0059
A12: 5.0 | B12: *LUCRO | C12: 0.0616 | D12: 0.074 | E12: 0.0659
A13: 6.0 | B13: TRIBUTOS
A14: 6.1 | B14: ***ISS | C14: BASE DE CÁLCULO | D14: 1 | E14: 0.03
A15: 6.2 | B15: **PIS/PASEP | E15: 0.03
A16: 6.3 | B16: **COFINS | E16: 0.0065
A17: 6.4 | B17: CPRB | E17: 0.045
A18: Tributos ( I ) = | E18: =SUM(E15:E17)+(D14*E14) -> 0.1115
A20: BDI= | B20: (1+AC+S+R+G).(1+DF).(1+L) | C20: -1 | D20: =((1+E8+E9+E10)*(1+E11)*(1+E12)/(1-E18))-1 -> 0.2643018753
B21: (1 - I)
A23: AC = Administração Central
A24: S = Seguro
A25: R = Risco
A26: G = Garantia
A27: DF = Dispesas financeiras
A28: L = Lucro
A29: I = imposto (Tributos)
A30: * Em acordo estipulados pelo Acórdão 2622/2013
A31: ** Dado fornecido atravez do anexo III da Lei Complementar 126/2006 Receita bruta em 12 meses de R$ 3.420.000,00 até R$3.600.000,00 (Receita Máxima).
A32: Obs: de acordo com o Acórdão 325/2007 os itens: Contribuição Patronal Previdenciária (CPP); Contribuição Social sobre o Lucro Líquido (CSLL) e Imposto sobre a Renda da Pessoa Jurídica (IRPJ). Que consta no Anexo, não devem integrar o calculo do BDI.
A35: _____________________________________
A36: JULIANO DE LIMA
A37: Engenheiro Civil - CREA/SC 147.428-0

Sheet COMPOSIÇÕES
A1: PLANILHA DE COMPOSIÇÕES
A2: COMPOSIÇÃO | B2: ='PLANILHA ORÇAMENTÁRIA'!C8 -> REFERENCIA | C2: ='PLANILHA ORÇAMENTÁRIA'!D8 -> DESCRIÇÃO DO SERVIÇO | D2: ='PLANILHA ORÇAMENTÁRIA'!E8 -> UNIDADE | E2: ='PLANILHA ORÇAMENTÁRIA'!F8 -> QUANTIDADE | F2: ='PLANILHA ORÇAMENTÁRIA'!G8 -> VALOR UNITÁRIO | G2: ='PLANILHA ORÇAMENTÁRIA'!I8 -> VALOR TOTAL
A3: C1 | B3: FORRO EM RÉGUAS DE PVC, FRISADO, PARA AMBIENTES COMERCIAIS, EXCETO ESTRUTURA DE FIXAÇÃO. (APROVEITAMENTO DO ENTARRUGAMENTO EXISTENTE) | G3: =SUM(G4:G8) -> 38.879918
A4: 1.1 | B4: 36238 | C4: =IF(ISERROR(VLOOKUP(B4,'BANCO DE DADOS'!A:D,2,0)),"",VLOOKUP(B4,'BANCO DE DADOS'!A:D,2,0)) -> FORRO DE PVC, FRISADO, BRANCO, REGUA DE 20 CM, ESPESSURA DE 8 MM A 10 MM E COMPRIMENTO 6 M (SEM COLOCACAO) | D4: =IF(ISERROR(VLOOKUP(B4,'BANCO DE DADOS'!A:D,3,0)),"",VLOOKUP(B4,'BANCO DE DADOS'!A:D,3,0)) -> M2 | E4: 1.0956 | F4: =IF(ISERROR(VLOOKUP(B4,'BANCO DE DADOS'!A:D,4,0)),"",VLOOKUP(B4,'BANCO DE DADOS'!A:D,4,0)) -> 23,35 | G4: =E4*F4 -> 25.58226
A5: 1.2 | B5: 39443 | C5: =IF(ISERROR(VLOOKUP(B5,'BANCO DE DADOS'!A:D,2,0)),"",VLOOKUP(B5,'BANCO DE DADOS'!A:D,2,0)) -> PARAFUSO DRY WALL, EM ACO ZINCADO, CABECA LENTILHA E PONTA BROCA (LB), LARGURA 4,2 MM, COMPRIMENTO 13 MM | D5: =IF(ISERROR(VLOOKUP(B5,'BANCO DE DADOS'!A:D,3,0)),"",VLOOKUP(B5,'BANCO DE DADOS'!A:D,3,0)) -> UN | E5: 2.1912 | F5: =IF(ISERROR(VLOOKUP(B5,'BANCO DE DADOS'!A:D,4,0)),"",VLOOKUP(B5,'BANCO DE DADOS'!A:D,4,0)) -> 0,34 | G5: =E5*F5 -> 0.745008
A6: 1.3 | B6: 40547 | C6: =IF(ISERROR(VLOOKUP(B6,'BANCO DE DADOS'!A:D,2,0)),"",VLOOKUP(B6,'BANCO DE DADOS'!A:D,2,0)) -> PARAFUSO ZINCADO, AUTOBROCANTE, FLANGEADO, 4,2 MM X 19 MM | D6: =IF(ISERROR(VLOOKUP(B6,'BANCO DE DADOS'!A:D,3,0)),"",VLOOKUP(B6,'BANCO DE DADOS'!A:D,3,0)) -> CENTO | E6: 0.0132 | F6: =IF(ISERROR(VLOOKUP(B6,'BANCO DE DADOS'!A:D,4,0)),"",VLOOKUP(B6,'BANCO DE DADOS'!A:D,4,0)) -> 38,76 | G6: 0.511632
A7: 2.1 | B7: 40552 | C7: =IF(ISERROR(VLOOKUP(B7,'BANCO DE DADOS'!A:D,2,0)),"",VLOOKUP(B7,'BANCO DE DADOS'!A:D,2,0)) -> PARAFUSO, AUTO ATARRACHANTE, CABECA CHATA, FENDA SIMPLES, 1/4 (6,35 MM) X 25 MM | D7: =IF(ISERROR(VLOOKUP(B7,'BANCO DE DADOS'!A:D,3,0)),"",VLOOKUP(B7,'BANCO DE DADOS'!A:D,3,0)) -> CENTO | E7: 0.033 | F7: =IF(ISERROR(VLOOKUP(B7,'BANCO DE DADOS'!A:D,4,0)),"",VLOOKUP(B7,'BANCO DE DADOS'!A:D,4,0)) -> 66,45 | G7: =E7*F7 -> 2.19285
A8: 2.2 | B8: 88278 | C8: =IF(ISERROR(VLOOKUP(B8,'BANCO DE DADOS'!A:D,2,0)),"",VLOOKUP(B8,'BANCO DE DADOS'!A:D,2,0)) -> MONTADOR DE ESTRUTURA METÁLICA COM ENCARGOS COMPLEMENTARES | D8: =IF(ISERROR(VLOOKUP(B8,'BANCO DE DADOS'!A:D,3,0)),"",VLOOKUP(B8,'BANCO DE DADOS'!A:D,3,0)) -> H | E8: 0.4994 | F8: =IF(ISERROR(VLOOKUP(B8,'BANCO DE DADOS'!A:D,4,0)),"",VLOOKUP(B8,'BANCO DE DADOS'!A:D,4,0)) -> 19,72 | G8: =E8*F8 -> 9.848168
A11: JULIANO DE LIMA
A12: Engenheiro Civil - CREA/SC 147.428-0

Sheet Plan1
